[Event "Titled Tuesday Blitz March 01 Early 2022"]
[White "Gormally, Daniel W"]
[Black "Budrewicz, Krzysztof"]
[WhiteFideId "406465"]
[BlackFideId "1127950"]
[WhiteElo "2543"]
[BlackElo "2248"]
[Result "1-0"]
[Round "04"]
[TimeControl "180+1"]
[Date "2022.03.01"]
[WhiteClock "0:00:59"]
[BlackClock "0:00:36"]

1. c4 {[%clk 0:02:58]}  Nf6 {[%clk 0:02:58]} 2. Nf3 {[%clk 0:02:58]}  g6 {[%clk 0:02:58]} 3. Nc3 {[%clk 0:02:59]}  Bg7 {[%clk 0:02:58]} 4. e4 {[%clk 0:02:59]}  d6 {[%clk 0:02:59]} 5. d4 {[%clk 0:02:59]}  O-O {[%clk 0:02:59]} 6. Be2 {[%clk 0:03:00]}  e5 {[%clk 0:03:00]} 7. O-O {[%clk 0:03:00]}  Na6 {[%clk 0:02:57]} 8. Bg5 {[%clk 0:02:58]}  h6 {[%clk 0:02:56]} 9. Bh4 {[%clk 0:02:58]}  g5 {[%clk 0:02:51]} 10. Bg3 {[%clk 0:02:58]}  Nh5 {[%clk 0:02:51]} 11. dxe5 {[%clk 0:02:56]}  Nxg3 {[%clk 0:02:48]} 12. hxg3 {[%clk 0:02:55]}  dxe5 {[%clk 0:02:49]} 13. a3 {[%clk 0:02:49]}  c6 {[%clk 0:02:48]} 14. b4 {[%clk 0:02:48]}  Qe7 {[%clk 0:02:49]} 15. c5 {[%clk 0:02:46]}  Nc7 {[%clk 0:02:47]} 16. Qd6 {[%clk 0:02:38]}  Qxd6 {[%clk 0:02:38]} 17. cxd6 {[%clk 0:02:38]}  Ne6 {[%clk 0:02:38]} 18. Rad1 {[%clk 0:02:36]}  Bd7 {[%clk 0:02:37]} 19. Bc4 {[%clk 0:02:30]}  Rfe8 {[%clk 0:02:28]} 20. Rfe1 {[%clk 0:02:27]}  f6 {[%clk 0:02:22]} 21. Nh2 {[%clk 0:02:27]}  Bf8 {[%clk 0:02:19]} 22. Ng4 {[%clk 0:02:25]}  Kg7 {[%clk 0:02:19]} 23. Ne3 {[%clk 0:02:25]}  Nd4 {[%clk 0:02:18]} 24. Ne2 {[%clk 0:02:21]}  Nxe2+ {[%clk 0:02:16]} 25. Rxe2 {[%clk 0:02:21]}  Rad8 {[%clk 0:02:16]} 26. Red2 {[%clk 0:02:18]}  Kg6 {[%clk 0:02:14]} 27. g4 {[%clk 0:02:17]}  h5 {[%clk 0:02:11]} 28. f3 {[%clk 0:02:15]}  hxg4 {[%clk 0:02:05]} 29. fxg4 {[%clk 0:02:15]}  Ra8 {[%clk 0:01:51]} 30. Nf5 {[%clk 0:02:13]}  a5 {[%clk 0:01:49]} 31. Rb2 {[%clk 0:01:53]}  axb4 {[%clk 0:01:48]} 32. axb4 {[%clk 0:01:52]}  b5 {[%clk 0:01:43]} 33. Bb3 {[%clk 0:01:50]}  Ra3 {[%clk 0:01:39]} 34. Kf2 {[%clk 0:01:40]}  Rd8 {[%clk 0:01:23]} 35. Rd3 {[%clk 0:01:28]}  Ra1 {[%clk 0:01:19]} 36. Rbd2 {[%clk 0:01:21]}  Ra7 {[%clk 0:01:00]} 37. Rh3 {[%clk 0:01:19]}  Raa8 {[%clk 0:00:54]} 38. Rh8 {[%clk 0:01:13]}  Bxf5 {[%clk 0:00:50]} 39. gxf5+ {[%clk 0:01:08]}  Kg7 {[%clk 0:00:50]} 40. Rg8+ {[%clk 0:01:08]}  Kh7 {[%clk 0:00:49]} 41. Rd3 {[%clk 0:01:04]}  Bh6 {[%clk 0:00:36]} 42. Rg6 {[%clk 0:01:00]}  g4 {[%clk 0:00:36]} 43. Rd1 {[%clk 0:00:59]} 1-0


[Site "https://www.chess.com"]

[Event "Titled Tuesday Blitz March 01 Early 2022"]
[White "Gubanov, Oleg"]
[Black "Sovetbekova, Nurai"]
[WhiteFideId "14115115"]
[BlackFideId "13801910"]
[WhiteElo "2080"]
[BlackElo "1545"]
[Result "1-0"]
[Round "04"]
[TimeControl "180+1"]
[Date "2022.03.01"]
[WhiteClock "0:01:20"]
[BlackClock "0:00:03"]

1. e4 {[%clk 0:03:00]}  c5 {[%clk 0:02:59]} 2. Nf3 {[%clk 0:03:00]}  d6 {[%clk 0:02:59]} 3. c3 {[%clk 0:03:00]}  Nf6 {[%clk 0:02:46]} 4. Bc4 {[%clk 0:03:01]}  Nc6 {[%clk 0:02:31]} 5. Qe2 {[%clk 0:03:00]}  e6 {[%clk 0:02:24]} 6. O-O {[%clk 0:02:58]}  Be7 {[%clk 0:02:23]} 7. Bb3 {[%clk 0:02:58]}  O-O {[%clk 0:02:22]} 8. d4 {[%clk 0:02:58]}  cxd4 {[%clk 0:02:16]} 9. cxd4 {[%clk 0:02:58]}  d5 {[%clk 0:02:09]} 10. e5 {[%clk 0:02:58]}  Ne4 {[%clk 0:02:09]} 11. Nc3 {[%clk 0:02:56]}  Nxc3 {[%clk 0:02:02]} 12. bxc3 {[%clk 0:02:57]}  Bd7 {[%clk 0:01:29]} 13. Bc2 {[%clk 0:02:49]}  f5 {[%clk 0:01:06]} 14. exf6 {[%clk 0:02:47]}  Bxf6 {[%clk 0:01:02]} 15. Re1 {[%clk 0:02:40]}  Qc7 {[%clk 0:00:50]} 16. Qd3 {[%clk 0:02:35]}  g6 {[%clk 0:00:49]} 17. Bh6 {[%clk 0:02:35]}  Bg7 {[%clk 0:00:49]} 18. Bxg7 {[%clk 0:02:26]}  Kxg7 {[%clk 0:00:50]} 19. Ng5 {[%clk 0:02:26]}  Ne7 {[%clk 0:00:30]} 20. Nxe6+ {[%clk 0:02:21]}  Bxe6 {[%clk 0:00:31]} 21. Rxe6 {[%clk 0:02:21]}  Qd7 {[%clk 0:00:25]} 22. Rae1 {[%clk 0:02:17]}  Rae8 {[%clk 0:00:25]} 23. Qe3 {[%clk 0:01:58]}  Kf7 {[%clk 0:00:22]} 24. Qh3 {[%clk 0:01:52]}  Kg8 {[%clk 0:00:14]} 25. Qe3 {[%clk 0:01:35]}  Kf7 {[%clk 0:00:13]} 26. h4 {[%clk 0:01:36]}  Nf5 {[%clk 0:00:12]} 27. Bxf5 {[%clk 0:01:35]}  gxf5 {[%clk 0:00:13]} 28. Rxe8 {[%clk 0:01:28]}  Rxe8 {[%clk 0:00:14]} 29. Qxe8+ {[%clk 0:01:26]}  Qxe8 {[%clk 0:00:14]} 30. Rxe8 {[%clk 0:01:26]}  Kxe8 {[%clk 0:00:15]} 31. f3 {[%clk 0:01:23]}  Kd7 {[%clk 0:00:13]} 32. g4 {[%clk 0:01:22]}  fxg4 {[%clk 0:00:10]} 33. fxg4 {[%clk 0:01:22]}  Ke6 {[%clk 0:00:08]} 34. Kf2 {[%clk 0:01:22]}  b5 {[%clk 0:00:05]} 35. a3 {[%clk 0:01:19]}  a5 {[%clk 0:00:04]} 36. Kf3 {[%clk 0:01:19]}  Kf6 {[%clk 0:00:03]} 37. Kf4 {[%clk 0:01:19]}  h6 {[%clk 0:00:03]} 38. g5+ {[%clk 0:01:19]}  hxg5+ {[%clk 0:00:03]} 39. hxg5+ {[%clk 0:01:20]}  Kg6 {[%clk 0:00:03]} 40. Ke5 {[%clk 0:01:20]} 1-0


[Site "https://www.chess.com"]

[Event "Titled Tuesday Blitz March 01 Early 2022"]
[White "Guseva, Marina"]
[Black "Moreira, Ronaldo Alonso"]
[WhiteFideId "4149351"]
[BlackFideId "2110547"]
[WhiteElo "2232"]
[BlackElo "2037"]
[Result "1-0"]
[Round "04"]
[TimeControl "180+1"]
[Date "2022.03.01"]
[WhiteClock "0:00:27"]
[BlackClock "0:00:01"]

1. d4 {[%clk 0:03:00]}  Nf6 {[%clk 0:02:59]} 2. Nf3 {[%clk 0:02:59]}  d5 {[%clk 0:02:58]} 3. Bf4 {[%clk 0:02:59]}  c5 {[%clk 0:02:58]} 4. e3 {[%clk 0:02:58]}  Nc6 {[%clk 0:02:56]} 5. Nbd2 {[%clk 0:02:57]}  Qb6 {[%clk 0:02:45]} 6. dxc5 {[%clk 0:02:56]}  Qxb2 {[%clk 0:02:32]} 7. Rb1 {[%clk 0:02:55]}  Qa3 {[%clk 0:02:26]} 8. Bb5 {[%clk 0:02:51]}  Qxc5 {[%clk 0:01:56]} 9. O-O {[%clk 0:02:47]}  Bf5 {[%clk 0:01:50]} 10. Nd4 {[%clk 0:02:43]}  Bd7 {[%clk 0:01:36]} 11. c4 {[%clk 0:01:39]}  dxc4 {[%clk 0:01:21]} 12. Nxc4 {[%clk 0:01:34]}  e5 {[%clk 0:01:07]} 13. Bxc6 {[%clk 0:01:29]}  exf4 {[%clk 0:00:35]} 14. Bxd7+ {[%clk 0:00:57]}  Nxd7 {[%clk 0:00:33]} 15. exf4 {[%clk 0:00:54]}  Qxc4 {[%clk 0:00:21]} 16. Re1+ {[%clk 0:00:53]}  Be7 {[%clk 0:00:19]} 17. Nf5 {[%clk 0:00:53]}  O-O {[%clk 0:00:13]} 18. Nxe7+ {[%clk 0:00:52]}  Kh8 {[%clk 0:00:11]} 19. Qxd7 {[%clk 0:00:51]}  b6 {[%clk 0:00:06]} 20. Qd5 {[%clk 0:00:38]}  Qxf4 {[%clk 0:00:05]} 21. g3 {[%clk 0:00:37]}  Qf6 {[%clk 0:00:04]} 22. Nc6 {[%clk 0:00:35]}  Rac8 {[%clk 0:00:03]} 23. Rbc1 {[%clk 0:00:34]}  h6 {[%clk 0:00:01]} 24. Nxa7 {[%clk 0:00:32]}  Rcd8 {[%clk 0:00:01]} 25. Qc6 {[%clk 0:00:27]} 1-0


[Site "https://www.chess.com"]

[Event "Titled Tuesday Blitz March 01 Early 2022"]
[White "Hamley, Ryan"]
[Black "Talibov, Shiroghlan"]
[WhiteFideId "30959497"]
[BlackFideId "13429078"]
[WhiteElo "2547"]
[BlackElo "2070"]
[Result "1-0"]
[Round "04"]
[TimeControl "180+1"]
[Date "2022.03.01"]
[WhiteClock "0:00:30"]
[BlackClock "0:00:03"]

1. d4 {[%clk 0:03:00]}  Nf6 {[%clk 0:02:57]} 2. Nf3 {[%clk 0:03:01]}  e6 {[%clk 0:02:55]} 3. Bf4 {[%clk 0:03:00]}  Bd6 {[%clk 0:02:41]} 4. Bxd6 {[%clk 0:02:49]}  cxd6 {[%clk 0:02:42]} 5. e3 {[%clk 0:02:49]}  O-O {[%clk 0:02:42]} 6. c4 {[%clk 0:02:49]}  b6 {[%clk 0:02:40]} 7. Nc3 {[%clk 0:02:49]}  Bb7 {[%clk 0:02:39]} 8. Bd3 {[%clk 0:02:49]}  Re8 {[%clk 0:02:38]} 9. Bc2 {[%clk 0:02:43]}  d5 {[%clk 0:02:28]} 10. cxd5 {[%clk 0:02:39]}  Nxd5 {[%clk 0:02:28]} 11. Nxd5 {[%clk 0:02:33]}  Bxd5 {[%clk 0:02:29]} 12. e4 {[%clk 0:02:33]}  Bb7 {[%clk 0:02:29]} 13. O-O {[%clk 0:02:32]}  d6 {[%clk 0:02:28]} 14. Qd3 {[%clk 0:02:30]}  Nc6 {[%clk 0:02:22]} 15. a3 {[%clk 0:02:27]}  a5 {[%clk 0:02:20]} 16. Rfd1 {[%clk 0:02:23]}  Qe7 {[%clk 0:02:17]} 17. Rac1 {[%clk 0:02:22]}  Red8 {[%clk 0:02:12]} 18. Ba4 {[%clk 0:02:21]}  Na7 {[%clk 0:01:59]} 19. d5 {[%clk 0:02:16]}  e5 {[%clk 0:01:54]} 20. Qb3 {[%clk 0:02:12]}  Ba6 {[%clk 0:01:26]} 21. Qxb6 {[%clk 0:01:30]}  Be2 {[%clk 0:01:24]} 22. Rc7 {[%clk 0:01:30]}  Qf6 {[%clk 0:01:18]} 23. Rxa7 {[%clk 0:01:30]}  Bxd1 {[%clk 0:01:06]} 24. Rxa8 {[%clk 0:01:25]}  Rxa8 {[%clk 0:01:07]} 25. Bxd1 {[%clk 0:01:25]}  g5 {[%clk 0:01:06]} 26. h3 {[%clk 0:01:22]}  h5 {[%clk 0:01:06]} 27. Qb7 {[%clk 0:01:17]}  Re8 {[%clk 0:00:57]} 28. Nd2 {[%clk 0:01:16]}  g4 {[%clk 0:00:51]} 29. hxg4 {[%clk 0:01:16]}  Qf4 {[%clk 0:00:51]} 30. Nf1 {[%clk 0:01:04]}  hxg4 {[%clk 0:00:38]} 31. Qd7 {[%clk 0:00:39]}  Rb8 {[%clk 0:00:21]} 32. Qxg4+ {[%clk 0:00:38]}  Qxg4 {[%clk 0:00:16]} 33. Bxg4 {[%clk 0:00:38]}  Rxb2 {[%clk 0:00:17]} 34. Bd7 {[%clk 0:00:39]}  Rb3 {[%clk 0:00:09]} 35. a4 {[%clk 0:00:39]}  Kg7 {[%clk 0:00:09]} 36. Ne3 {[%clk 0:00:34]}  Rb4 {[%clk 0:00:06]} 37. f3 {[%clk 0:00:34]}  Kf6 {[%clk 0:00:05]} 38. Bb5 {[%clk 0:00:32]}  Rb1+ {[%clk 0:00:05]} 39. Kf2 {[%clk 0:00:32]}  Kg5 {[%clk 0:00:04]} 40. Nc4 {[%clk 0:00:30]}  Kf4 {[%clk 0:00:03]} 41. g3+ {[%clk 0:00:30]} 1-0


[Site "https://www.chess.com"]

[Event "Titled Tuesday Blitz March 01 Early 2022"]
[White "Harris, Ian"]
[Black "Poormosavi, Seyed Kian"]
[WhiteFideId "2020092"]
[BlackFideId "12585807"]
[WhiteElo "2369"]
[BlackElo "2116"]
[Result "0-1"]
[Round "04"]
[TimeControl "180+1"]
[Date "2022.03.01"]
[WhiteClock "0:00:09"]
[BlackClock "0:00:06"]

1. e4 {[%clk 0:03:00]}  c5 {[%clk 0:03:00]} 2. d4 {[%clk 0:03:00]}  cxd4 {[%clk 0:02:59]} 3. c3 {[%clk 0:03:00]}  d3 {[%clk 0:03:00]} 4. Nf3 {[%clk 0:03:00]}  g6 {[%clk 0:03:00]} 5. Bxd3 {[%clk 0:03:00]}  Bg7 {[%clk 0:03:01]} 6. c4 {[%clk 0:03:01]}  Nc6 {[%clk 0:03:01]} 7. Nc3 {[%clk 0:03:01]}  d6 {[%clk 0:03:02]} 8. O-O {[%clk 0:03:00]}  Nf6 {[%clk 0:03:01]} 9. h3 {[%clk 0:02:57]}  O-O {[%clk 0:03:01]} 10. Be3 {[%clk 0:02:56]}  Nd7 {[%clk 0:03:01]} 11. Rc1 {[%clk 0:02:45]}  a5 {[%clk 0:03:00]} 12. b3 {[%clk 0:02:44]}  Nc5 {[%clk 0:03:00]} 13. Bb1 {[%clk 0:02:44]}  Bxc3 {[%clk 0:02:58]} 14. Rxc3 {[%clk 0:02:43]}  b6 {[%clk 0:02:54]} 15. a4 {[%clk 0:02:34]}  e5 {[%clk 0:02:54]} 16. Qe2 {[%clk 0:02:30]}  f5 {[%clk 0:02:53]} 17. Bh6 {[%clk 0:02:18]}  Rf7 {[%clk 0:02:21]} 18. Rd1 {[%clk 0:02:17]}  Qc7 {[%clk 0:02:06]} 19. Qd2 {[%clk 0:02:12]}  Ne6 {[%clk 0:01:43]} 20. exf5 {[%clk 0:01:59]}  gxf5 {[%clk 0:01:39]} 21. Qxd6 {[%clk 0:01:59]}  e4 {[%clk 0:01:30]} 22. Qxc7 {[%clk 0:01:56]}  Rxc7 {[%clk 0:01:25]} 23. Nh4 {[%clk 0:01:50]}  Ncd4 {[%clk 0:01:23]} 24. Rg3+ {[%clk 0:01:46]}  Kh8 {[%clk 0:01:20]} 25. Be3 {[%clk 0:01:42]}  Ne2+ {[%clk 0:01:18]} 26. Kh2 {[%clk 0:01:34]}  Nxg3 {[%clk 0:01:19]} 27. fxg3 {[%clk 0:01:35]}  Rf7 {[%clk 0:01:08]} 28. Bc1 {[%clk 0:01:15]}  Bb7 {[%clk 0:01:02]} 29. Bb2+ {[%clk 0:01:13]}  Kg8 {[%clk 0:01:02]} 30. Rd6 {[%clk 0:01:11]}  Nc5 {[%clk 0:00:55]} 31. Rxb6 {[%clk 0:01:10]}  Re8 {[%clk 0:00:31]} 32. Rb5 {[%clk 0:01:03]}  Nd3 {[%clk 0:00:29]} 33. Bc3 {[%clk 0:00:57]}  Bc8 {[%clk 0:00:29]} 34. Bxa5 {[%clk 0:00:53]}  Nf2 {[%clk 0:00:28]} 35. Kg1 {[%clk 0:00:42]}  e3 {[%clk 0:00:23]} 36. Kf1 {[%clk 0:00:42]}  Nh1 {[%clk 0:00:22]} 37. Ke1 {[%clk 0:00:26]}  Nxg3 {[%clk 0:00:20]} 38. Bc3 {[%clk 0:00:20]}  Rd8 {[%clk 0:00:19]} 39. Bc2 {[%clk 0:00:16]}  Ne4 {[%clk 0:00:15]} 40. Bxe4 {[%clk 0:00:08]}  fxe4 {[%clk 0:00:14]} 41. Rd5 {[%clk 0:00:08]}  Rxd5 {[%clk 0:00:13]} 42. cxd5 {[%clk 0:00:09]}  Ba6 {[%clk 0:00:13]} 43. Kd1 {[%clk 0:00:04]}  Rf1+ {[%clk 0:00:13]} 44. Be1 {[%clk 0:00:04]}  e2+ {[%clk 0:00:10]} 45. Kd2 {[%clk 0:00:04]}  e3+ {[%clk 0:00:11]} 46. Kxe3 {[%clk 0:00:05]}  Rxe1 {[%clk 0:00:11]} 47. Nf3 {[%clk 0:00:05]}  Rd1 {[%clk 0:00:12]} 48. Ke4 {[%clk 0:00:05]}  e1=Q+ {[%clk 0:00:11]} 49. Nxe1 {[%clk 0:00:05]}  Rxe1+ {[%clk 0:00:12]} 50. Kd4 {[%clk 0:00:06]}  Bf1 {[%clk 0:00:10]} 51. g3 {[%clk 0:00:05]}  Bxh3 {[%clk 0:00:10]} 52. d6 {[%clk 0:00:05]}  Be6 {[%clk 0:00:09]} 53. b4 {[%clk 0:00:06]}  Rb1 {[%clk 0:00:08]} 54. Kc5 {[%clk 0:00:05]}  Rc1+ {[%clk 0:00:08]} 55. Kb6 {[%clk 0:00:05]}  Rc3 {[%clk 0:00:07]} 56. b5 {[%clk 0:00:04]}  Rxg3 {[%clk 0:00:07]} 57. a5 {[%clk 0:00:05]}  Ra3 {[%clk 0:00:07]} 58. a6 {[%clk 0:00:05]}  h5 {[%clk 0:00:07]} 59. a7 {[%clk 0:00:04]}  Kf7 {[%clk 0:00:07]} 60. Kb7 {[%clk 0:00:05]}  Bd5+ {[%clk 0:00:07]} 61. Kb6 {[%clk 0:00:05]}  Ke8 {[%clk 0:00:05]} 62. Kc5 {[%clk 0:00:05]}  Ba8 {[%clk 0:00:05]} 63. b6 {[%clk 0:00:06]}  Kd7 {[%clk 0:00:05]} 64. Kb5 {[%clk 0:00:06]}  Bb7 {[%clk 0:00:05]} 65. Kb4 {[%clk 0:00:07]}  Ra1 {[%clk 0:00:05]} 66. Kc5 {[%clk 0:00:08]}  h4 {[%clk 0:00:05]} 67. Kd4 {[%clk 0:00:08]}  h3 {[%clk 0:00:05]} 68. Ke5 {[%clk 0:00:09]}  h2 {[%clk 0:00:06]} 0-1


[Site "https://www.chess.com"]

[Event "Titled Tuesday Blitz March 01 Early 2022"]
[White "Indjic, Aleksandar"]
[Black "Kosakowski, Jakub"]
[WhiteFideId "911925"]
[BlackFideId "1185080"]
[WhiteElo "2616"]
[BlackElo "2476"]
[Result "1-0"]
[Round "04"]
[TimeControl "180+1"]
[Date "2022.03.01"]
[WhiteClock "0:01:27"]
[BlackClock "0:00:33"]

1. d4 {[%clk 0:03:00]}  Nf6 {[%clk 0:02:54]} 2. Nf3 {[%clk 0:03:01]}  d5 {[%clk 0:02:53]} 3. Bg5 {[%clk 0:03:01]}  Ne4 {[%clk 0:02:48]} 4. Bf4 {[%clk 0:03:00]}  c5 {[%clk 0:02:48]} 5. e3 {[%clk 0:02:59]}  Nc6 {[%clk 0:02:48]} 6. c3 {[%clk 0:02:59]}  Qb6 {[%clk 0:02:43]} 7. Qc1 {[%clk 0:02:58]}  Bf5 {[%clk 0:02:38]} 8. Nbd2 {[%clk 0:02:57]}  h6 {[%clk 0:02:35]} 9. h3 {[%clk 0:02:55]}  e6 {[%clk 0:02:35]} 10. Be2 {[%clk 0:02:54]}  Be7 {[%clk 0:02:35]} 11. O-O {[%clk 0:02:54]}  O-O {[%clk 0:02:36]} 12. Ne5 {[%clk 0:02:51]}  Nxe5 {[%clk 0:02:32]} 13. Bxe5 {[%clk 0:02:50]}  Rac8 {[%clk 0:02:30]} 14. Nxe4 {[%clk 0:02:49]}  Bxe4 {[%clk 0:02:30]} 15. Qd2 {[%clk 0:02:49]}  Rfd8 {[%clk 0:02:23]} 16. Rac1 {[%clk 0:02:44]}  Qc6 {[%clk 0:02:16]} 17. Bd3 {[%clk 0:02:42]}  Bxd3 {[%clk 0:02:14]} 18. Qxd3 {[%clk 0:02:43]}  b5 {[%clk 0:02:14]} 19. Qe2 {[%clk 0:02:42]}  a5 {[%clk 0:02:12]} 20. Qg4 {[%clk 0:02:41]}  f6 {[%clk 0:02:12]} 21. Bf4 {[%clk 0:02:41]}  Kh7 {[%clk 0:02:09]} 22. h4 {[%clk 0:02:40]}  g5 {[%clk 0:01:40]} 23. hxg5 {[%clk 0:02:33]}  hxg5 {[%clk 0:01:41]} 24. Bg3 {[%clk 0:02:30]}  Kg7 {[%clk 0:01:41]} 25. Rfe1 {[%clk 0:02:27]}  f5 {[%clk 0:01:28]} 26. Be5+ {[%clk 0:02:26]}  Kg6 {[%clk 0:01:28]} 27. Qe2 {[%clk 0:02:26]}  Bf6 {[%clk 0:01:23]} 28. Bxf6 {[%clk 0:02:19]}  Kxf6 {[%clk 0:01:23]} 29. f3 {[%clk 0:02:16]}  Kg6 {[%clk 0:01:19]} 30. Kf2 {[%clk 0:02:16]}  Qd6 {[%clk 0:01:17]} 31. Qxb5 {[%clk 0:02:13]}  c4 {[%clk 0:01:06]} 32. Qa4 {[%clk 0:02:12]}  g4 {[%clk 0:01:05]} 33. Rh1 {[%clk 0:01:57]}  Rh8 {[%clk 0:01:04]} 34. f4 {[%clk 0:01:54]}  Qb8 {[%clk 0:00:54]} 35. Qa3 {[%clk 0:01:44]}  Kf6 {[%clk 0:00:48]} 36. Rxh8 {[%clk 0:01:41]}  Rxh8 {[%clk 0:00:48]} 37. b3 {[%clk 0:01:42]}  g3+ {[%clk 0:00:42]} 38. Kxg3 {[%clk 0:01:33]}  Qg8+ {[%clk 0:00:32]} 39. Kf2 {[%clk 0:01:33]}  Rh2 {[%clk 0:00:32]} 40. Rg1 {[%clk 0:01:32]}  Qg4 {[%clk 0:00:32]} 41. Qf8+ {[%clk 0:01:30]}  Kg6 {[%clk 0:00:32]} 42. Qg8+ {[%clk 0:01:29]}  Kf6 {[%clk 0:00:32]} 43. Qxg4 {[%clk 0:01:28]}  fxg4 {[%clk 0:00:33]} 44. bxc4 {[%clk 0:01:28]}  dxc4 {[%clk 0:00:33]} 45. e4 {[%clk 0:01:27]} 1-0


[Site "https://www.chess.com"]

[Event "Titled Tuesday Blitz March 01 Early 2022"]
[White "Jones, Gawain C B"]
[Black "Gadimbayli, Abdulla"]
[WhiteFideId "409561"]
[BlackFideId "13404938"]
[WhiteElo "2657"]
[BlackElo "2282"]
[Result "1-0"]
[Round "04"]
[TimeControl "180+1"]
[Date "2022.03.01"]
[WhiteClock "0:01:36"]
[BlackClock "0:01:50"]

1. Nf3 {[%clk 0:03:00]}  d5 {[%clk 0:02:56]} 2. g3 {[%clk 0:03:00]}  Nc6 {[%clk 0:02:56]} 3. d4 {[%clk 0:03:00]}  Bg4 {[%clk 0:02:56]} 4. Bg2 {[%clk 0:03:00]}  Qd7 {[%clk 0:02:56]} 5. O-O {[%clk 0:02:57]}  f6 {[%clk 0:02:57]} 6. c4 {[%clk 0:02:56]}  dxc4 {[%clk 0:02:56]} 7. d5 {[%clk 0:02:51]}  O-O-O {[%clk 0:02:53]} 8. Nc3 {[%clk 0:02:45]}  Nb4 {[%clk 0:02:53]} 9. Qd4 {[%clk 0:02:29]}  Kb8 {[%clk 0:01:48]} 10. Be3 {[%clk 0:02:27]}  b6 {[%clk 0:01:49]} 11. Qxc4 {[%clk 0:02:27]}  Bxf3 {[%clk 0:01:49]} 12. Bxf3 {[%clk 0:02:22]}  Nc2 {[%clk 0:01:50]} 13. Nb5 {[%clk 0:01:36]} 1-0


[Site "https://www.chess.com"]

[Event "Titled Tuesday Blitz March 01 Early 2022"]
[White "Kamsky, Gata"]
[Black "Kucuksari, Kaan"]
[WhiteFideId "2000024"]
[BlackFideId "6380166"]
[WhiteElo "2645"]
[BlackElo "2305"]
[Result "1/2-1/2"]
[Round "04"]
[TimeControl "180+1"]
[Date "2022.03.01"]
[WhiteClock "0:00:18"]
[BlackClock "0:00:51"]

1. e4 {[%clk 0:03:00]}  c5 {[%clk 0:02:56]} 2. Nf3 {[%clk 0:02:59]}  e6 {[%clk 0:02:57]} 3. d4 {[%clk 0:02:52]}  cxd4 {[%clk 0:02:57]} 4. Nxd4 {[%clk 0:02:52]}  a6 {[%clk 0:02:58]} 5. Nc3 {[%clk 0:02:44]}  Qc7 {[%clk 0:02:57]} 6. Be2 {[%clk 0:02:42]}  b5 {[%clk 0:02:53]} 7. O-O {[%clk 0:02:40]}  Bb7 {[%clk 0:02:50]} 8. Re1 {[%clk 0:02:34]}  Bd6 {[%clk 0:02:38]} 9. g3 {[%clk 0:02:23]}  Be5 {[%clk 0:02:33]} 10. f4 {[%clk 0:02:10]}  Bxd4+ {[%clk 0:02:32]} 11. Qxd4 {[%clk 0:02:09]}  Nf6 {[%clk 0:02:33]} 12. a3 {[%clk 0:01:54]}  Nc6 {[%clk 0:02:27]} 13. Qf2 {[%clk 0:01:50]}  b4 {[%clk 0:02:10]} 14. axb4 {[%clk 0:01:46]}  Nxb4 {[%clk 0:02:11]} 15. Bf3 {[%clk 0:01:41]}  O-O {[%clk 0:02:02]} 16. Be3 {[%clk 0:01:40]}  Rfc8 {[%clk 0:01:31]} 17. Bd4 {[%clk 0:01:36]}  Qd8 {[%clk 0:01:18]} 18. Ra4 {[%clk 0:01:31]}  a5 {[%clk 0:01:08]} 19. Bb6 {[%clk 0:01:30]}  Qe7 {[%clk 0:01:07]} 20. Rxa5 {[%clk 0:01:25]}  Rxa5 {[%clk 0:00:51]} 21. Bxa5 {[%clk 0:01:25]}  d5 {[%clk 0:00:52]} 22. exd5 {[%clk 0:00:59]}  Nbxd5 {[%clk 0:00:50]} 23. Nxd5 {[%clk 0:00:55]}  Bxd5 {[%clk 0:00:50]} 24. Bxd5 {[%clk 0:00:25]}  Nxd5 {[%clk 0:00:51]} 25. f5 {[%clk 0:00:18]} 1/2-1/2


[Site "https://www.chess.com"]

[Event "Titled Tuesday Blitz March 01 Early 2022"]
[White "Karavaeva, Olga"]
[Black "Bogumil, Tatiana"]
[WhiteFideId "4124111"]
[BlackFideId "4110579"]
[WhiteElo "2105"]
[BlackElo "1862"]
[Result "0-1"]
[Round "04"]
[TimeControl "180+1"]
[Date "2022.03.01"]
[WhiteClock "0:01:24"]
[BlackClock "0:00:34"]

1. c4 {[%clk 0:03:00]}  Nf6 {[%clk 0:02:35]} 2. Nc3 {[%clk 0:03:00]}  b6 {[%clk 0:02:31]} 3. g3 {[%clk 0:03:00]}  Bb7 {[%clk 0:02:31]} 4. Nf3 {[%clk 0:03:00]}  g6 {[%clk 0:02:31]} 5. Bg2 {[%clk 0:03:00]}  Bg7 {[%clk 0:02:31]} 6. O-O {[%clk 0:03:00]}  O-O {[%clk 0:02:32]} 7. d4 {[%clk 0:03:00]}  c5 {[%clk 0:02:32]} 8. d5 {[%clk 0:03:00]}  d6 {[%clk 0:02:32]} 9. e4 {[%clk 0:03:00]}  b5 {[%clk 0:02:31]} 10. cxb5 {[%clk 0:02:56]}  a6 {[%clk 0:02:31]} 11. bxa6 {[%clk 0:02:52]}  Bxa6 {[%clk 0:02:31]} 12. Re1 {[%clk 0:02:52]}  Ng4 {[%clk 0:02:31]} 13. h3 {[%clk 0:02:49]}  Ne5 {[%clk 0:02:30]} 14. Nxe5 {[%clk 0:02:47]}  Bxe5 {[%clk 0:02:31]} 15. Be3 {[%clk 0:02:46]}  Nd7 {[%clk 0:02:28]} 16. f4 {[%clk 0:02:41]}  Bg7 {[%clk 0:02:28]} 17. Qd2 {[%clk 0:02:40]}  Qa5 {[%clk 0:02:27]} 18. Bf1 {[%clk 0:02:34]}  Bxf1 {[%clk 0:02:26]} 19. Rxf1 {[%clk 0:02:34]}  Rfb8 {[%clk 0:02:24]} 20. Rfc1 {[%clk 0:02:24]}  Rb4 {[%clk 0:02:13]} 21. Rc2 {[%clk 0:02:18]}  Bxc3 {[%clk 0:01:59]} 22. Rxc3 {[%clk 0:02:09]}  Rxe4 {[%clk 0:01:58]} 23. f5 {[%clk 0:02:09]}  Ne5 {[%clk 0:01:53]} 24. Bf4 {[%clk 0:02:00]}  Qb4 {[%clk 0:00:57]} 25. Bxe5 {[%clk 0:01:43]}  Rxe5 {[%clk 0:00:54]} 26. fxg6 {[%clk 0:01:42]}  hxg6 {[%clk 0:00:54]} 27. a3 {[%clk 0:01:40]}  Qe4 {[%clk 0:00:51]} 28. Rd3 {[%clk 0:01:31]}  Kg7 {[%clk 0:00:48]} 29. Rf1 {[%clk 0:01:31]}  Rh8 {[%clk 0:00:47]} 30. Kh2 {[%clk 0:01:24]}  Qg4 {[%clk 0:00:34]} 0-1


[Site "https://www.chess.com"]